Cogmind - Beta 14 @@@ ROGUE MODE // 2025.03.07 @ 00:18:41 Player: mix Result: Destroyed by D-53 Grenadier with Mini Grenade Launcher Performance ------------- Evolutions (0) 0 Regions Visited (2) 400 Robots Destroyed (28) 140 Value Destroyed (707) 707 Prototype IDs (0) 0 Alien Tech Used (0) 0 Bonus (0) 0 TOTAL SCORE: 1247 Bonus ------- None Cogmind --------- Core Integrity 0/250 Matter 275/300 Energy 100/100 System Corruption 2% Temperature Cool (0) Movement Walking (260) Ox2 Location -10/Mines Parts ------- > --- POWER (1) -------- (None) > --- PROPULSION (2) --- Aluminum Leg > --- UTILITY (2) ------ Large Storage Unit > --- WEAPON (2) ------- Particle Gun > --- INVENTORY (15) --- Recalibrator Heavy EM Pulse Gun Particle Gun Particle Gun Peak State ------------ > --- POWER ------------ Ion Engine > --- PROPULSION ------- Aluminum Leg Compact Wheel > --- UTILITY ---------- Large Storage Unit Improved Terrain Scanner > --- WEAPON ----------- Particle Gun Particle Gun > --- INVENTORY -------- Aluminum Leg Recalibrator Heavy EM Pulse Gun Particle Gun Particle Gun [Rating: 12] Favorites ----------- Power Ion Engine Engine Ion Engine Propulsion Light Treads Treads Light Treads Leg Aluminum Leg Wheel Compact Wheel Utility Improved Terrain Scanner Device Improved Terrain Scanner Storage Small Storage Unit Weapon Heavy EM Pulse Gun Energy Gun Heavy EM Pulse Gun Energy Cannon Light EM Pulse Cannon Ballistic Gun Assault Rifle Build | -11 -10 -10 ------- Run | Yrd Mat Min Slots Evolved . | . . . Power . | . . . Propulsion . | . . . Utility . | . . . Weapon . | . . . Parts Attached 20 | 7 12 1 Power 2 | 1 1 . Engine 2 | 1 1 . Core . | . . . Reactor . | . . . Propulsion 5 | 2 2 1 Treads 2 | 2 . . Leg 2 | . 1 1 Wheel 1 | . 1 . Hover . | . . . Flight . | . . . Utility 3 | 2 1 . Device 1 | 1 . . Storage 2 | 1 1 . Processor . | . . . Hackware . | . . . Protection . | . . . Artifact . | . . . Weapon 10 | 2 8 . Energy Gun 8 | 1 7 . Energy Cannon 1 | . 1 . Ballistic Gun 1 | 1 . . Ballistic Cannon . | . . . Launcher . | . . . Special Weapon . | . . . Impact Weapon . | . . . Slashing Weapon . | . . . Piercing Weapon . | . . . Special Melee Weapon . | . . . Unidentified Prototypes . | . . . Corrupted Parts 1 | . . 1 System Corruption 2 | . . 2 Parts Lost 11 | . 6 5 Power 2 | . 1 1 Propulsion 4 | . 2 2 Utility 1 | . . 1 Weapon 4 | . 3 1 Highest Loss Streak 5 | . 3 5 To Critical Strikes . | . . . Average Slot Usage (%) 90 | . 90 92 Engine 10 | . 10 14 Treads 18 | . 20 . Leg 2 | . 1 16 Wheel 1 | . . 11 Device 13 | . 14 9 Storage 14 | . 14 14 Energy Gun 23 | . 23 25 Energy Cannon 2 | . 2 . Ballistic Gun 2 | . 2 . Peak Build Rating 12 | 9 12 12 Average Rating 9 | 4 9 10 On Entrance 7 | . 9 12 Naked Turns . | . . . Heaviest Build 32 | 14 32 32 Greatest Support 40 | 40 40 20 Greatest Overweight (x) 4 | . 4 2 Average Overweight (x) . | . . 1 Largest Inventory Capacity 15 | 8 15 15 Average Capacity 8 | 6 8 15 Most Carried 7 | 4 7 5 Average Carried 2 | . 1 4 Final Capacity 15 | 8 15 15 Final Carried 5 | . 5 4 Class Distribution -------------------- 100% | Mutant Dominant Class ---------------- Mutant | -10/Materials Mutant | -10/Mines Resources | -11 -10 -10 ----------- Run | Yrd Mat Min Matter Collected 397 | 141 256 . Remotely . | . . . Salvage Created 1166 | 46 1072 48 Parts 57 | 7 48 2 Haulers Intercepted 2 | . 2 . Recyclers Shooed 2 | . 2 . Parts Field Recycled . | . . . Retrieved Matter . | . . . Parts Self-Destructed . | . . . Prevented . | . . . Kills | -11 -10 -10 ------- Run | Yrd Mat Min Combat Hostiles Destroyed 16 | . 14 2 Guns 16 | . 14 2 Classes Destroyed 9 | 1 7 1 Builder 1 | . 1 . Tunneler 2 | 2 . . Hauler 2 | . 2 . Recycler 3 | . 3 . Mechanic 1 | . 1 . Operator 2 | . 2 . Watcher 2 | . 2 . Grunt 15 | . 14 1 Assembled 1 | . . 1 Best Kill Streak 4 | 2 4 1 Combat Bots Only 3 | . 3 1 Max Kills in Single Turn 2 | 2 2 1 Gunslinging . | . . . Exploded . | . . . Melee . | . . . Uniques/NPCs Destroyed . | . . . Combat | -11 -10 -10 -------- Run | Yrd Mat Min Hostile Shots Fired 100 | . 81 19 Missed 29 | . 26 3 Damage Taken 1270 | . 753 517 Core 251 | . 89 162 Absorbed by Shields . | . . . Core Remaining (%) 100 | 100 . . Volleys Fired 81 | 1 74 6 Largest 2 | 2 2 2 Hottest 130 | 60 101 130 Shots Fired 159 | 2 145 12 Gun 158 | 2 144 12 Cannon 1 | . 1 . Launcher . | . . . Special . | . . . Kinetic 19 | 1 18 . Thermal 62 | 1 49 12 Explosive . | . . . Electromagnetic 78 | . 78 . Robot Hit Streak 15 | 1 15 5 Robot Miss Streak 5 | . 5 3 Penetration Max . | . . . Secondary Targets 2 | . 1 1 Max Gunslinging Chain 1 | . 1 1 Shots Hit Robots 108 | 1 100 7 Core Hits 45 | 2 38 5 Critical Kills . | . . . Critical Parts Destroyed . | . . . Critical Strikes 2 | . 1 1 Burn 1 | . . 1 Corrupt 1 | . 1 . Melee Attacks . | . . . Impact . | . . . Slashing . | . . . Piercing . | . . . Sneak Attacks . | . . . Combat Hostiles . | . . . Follow-up Attacks . | . . . Damage Inflicted 1710 | 24 1581 105 Guns 1478 | 24 1349 105 Cannons 25 | . 25 . Explosions 207 | . 207 . Melee . | . . . Ramming . | . . . Kinetic 171 | 12 159 . Thermal 724 | 12 607 105 Explosive . | . . . Electromagnetic 815 | . 815 . Impact . | . . . Slashing . | . . . Piercing . | . . . Highest Corruption 2 | . . 2 Average Corruption 2 | . . 2 Corruption Purged . | . . . Corruption Blocked . | . . . Overload Shots . | . . . Overflow Damage 69 | . 69 . Projectiles . | . . . Explosions 69 | . 69 . Melee . | . . . Knockbacks . | . . . Impact . | . . . Kinetic . | . . . Secondary . | . . . Self-Inflicted Damage 123 | . 123 . Shots 2 | . 2 . Rammed . | . . . Targets Rammed . | . . . Kicked . | . . . Crushed . | . . . Highest Temperature 361 | . 361 276 Average Temperature 87 | . 82 122 Received Heat Transfer 381 | . 363 18 Effects 1 | . 1 . Energy Bleed 1 | . 1 . Siege Activations . | . . . Robots Corrupted . | . . . Combat Hostiles . | . . . Parts Fried 4 | . 4 . Impact Corruptions . | . . . Robots Melted . | . . . Combat Hostiles . | . . . Parts Melted 2 | . 1 1 Heat Transferred 1558 | 25 1200 333 Parts Sabotaged . | . . . Parts Stolen . | . . . Parts Stripped . | . . . Power Chain Reactions 4 | . 4 . Alert | -11 -10 -10 ------- Run | Yrd Mat Min Peak Influence 374 | 10 374 107 Initial 87 | . 6 87 Average 164 | 1 179 99 Maximum Alert Level 1 | . 1 . Low Security (%) 56 | 100 51 100 Level 1 43 | . 48 . Level 2 . | . . . Level 3 . | . . . Level 4 . | . . . Level 5 . | . . . High Security . | . . . Max Security . | . . . Squads Dispatched 4 | . 4 . Investigation 1 | . 1 . Extermination . | . . . Reinforcement 3 | . 3 . Assault . | . . . Garrison . | . . . Intercept . | . . . Searches Triggered . | . . . Construction Impeded . | . . . Haulers Reinforced . | . . . Active Scanning Responses . | . . . Cargo Convoy Interrupts . | . . . Stealth | -11 -10 -10 --------- Run | Yrd Mat Min Distress Signals 3 | . 3 . Communications Jammed . | . . . Distress Signals . | . . . Times Spotted 50 | . 31 19 Peak Tracking Total 21 | . 5 21 Tactical Retreats 5 | . 3 2 Traps | -11 -10 -10 ------- Run | Yrd Mat Min Traps Triggered . | . . . Indirectly . | . . . Trap Hack Attempts . | . . . Triggered . | . . . Disarmed . | . . . Reprogrammed . | . . . Reused . | . . . Traps Extracted . | . . . Installed . | . . . Triggered . | . . . Machines | -11 -10 -10 ---------- Run | Yrd Mat Min Machines Disabled 4 | . 4 . Max in Single Turn 2 | . 2 . Machines Repaired . | . . . Machines Dismantled . | . . . Machines Sabotaged . | . . . Overloaded Fab Kills . | . . . Hacking | -11 -10 -10 --------- Run | Yrd Mat Min Machines Accessed 1 | . 1 . Terminals 1 | . 1 . Fabricators . | . . . Repair Stations . | . . . Recycling Units . | . . . Scanalyzers . | . . . Garrison Access . | . . . Total Hacks 3 | . 3 . Successful 1 | . 1 . Failed 2 | . 2 . Catastrophic . | . . . Database Lockouts . | . . . Manual 1 | . 1 . Terminals 3 | . 3 . Fabricators . | . . . Repair Stations . | . . . Recycling Units . | . . . Scanalyzers . | . . . Garrison Access . | . . . Terminal Hacks . | . . . Fabricator Hacks . | . . . Repair Station Hacks . | . . . Recycling Unit Hacks . | . . . Scanalyzer . | . . . Garrison Access Hacks . | . . . Unauthorized Hacks 1 | . 1 . Terminals 1 | . 1 . Botnet 1 | . 1 . Fabricators . | . . . Repair Stations . | . . . Recycling Units . | . . . Scanalyzers . | . . . Garrison Access . | . . . Data Cores Recovered . | . . . Used . | . . . Hacking Detections 1 | . 1 . Full Trace Events 1 | . 1 . Feedback Events . | . . . Feedback Blocked . | . . . Robot Schematics Acquired . | . . . Robots Built . | . . . Authchips . | . . . Time . | . . . Total Robot Build Rating . | . . . Part Schematics Acquired . | . . . Parts Built . | . . . Authchips . | . . . Time . | . . . Total Part Build Rating . | . . . Parts Repaired . | . . . Time . | . . . Parts Recycled . | . . . Recycled Matter . | . . . Retrieved Matter . | . . . Retrieved Components . | . . . Parts Scanalyzed . | . . . Part Schematics Acquired . | . . . Parts Damaged . | . . . Bothacking | -11 -10 -10 ------------ Run | Yrd Mat Min Used RIF Installer . | . . . Robots Hacked . | . . . Non-combat . | . . . Combat . | . . . Robot Hacks Applied . | . . . Relay Couplers Released . | . . . Fabnet Peak Effective % . | . . . Robots Rewired . | . . . Allies Hacked . | . . . Hacks Repelled . | . . . Allies | -11 -10 -10 -------- Run | Yrd Mat Min Total Allies . | . . . Largest Group . | . . . Highest-Rated Group . | . . . Highest-Rated Ally . | . . . Total Orders . | . . . Ally Attacks . | . . . Total Damage . | . . . Kills . | . . . Allies Corrupted . | . . . Allies Melted . | . . . Intel | -11 -10 -10 ------- Run | Yrd Mat Min Robot Analysis Total . | . . . Derelict Logs Recovered 1 | . . 1 Drone Launches . | . . . Drone Recoveries . | . . . Exploration | -11 -10 -10 ------------- Run | Yrd Mat Min Turns Passed 1012 | 58 895 59 Spaces Moved 385 | 31 323 31 Core 58 | 7 51 . Treads 247 | 24 223 . Legs 12 | . 5 7 Wheels 68 | . 44 24 Hover . | . . . Flight . | . . . Fastest Speed 50 | 50 100 115 Average Speed 161 | 135 167 134 Slowest Speed 260 | 160 250 260 Overloaded Moves . | . . . Propulsion Burnouts . | . . . Robots Hopped . | . . . Cave-ins Triggered . | . . . Exploration Rate (%) 20 | 4 47 11 Regions Visited 2 Branch Regions 1 Pre-discovered Areas . | . . . Known Exits Taken . | . . . Unknown Exits Taken 2 | 1 1 . Scrap Searched . | . . . Spaces Dug . | . . . Terrain Destroyed 48 | . 48 . Melee . | . . . Projectile . | . . . AOE 48 | . 48 . Terrain Rammed . | . . . Walls Destroyed . | . . . Machines Disabled . | . . . Actions | -11 -10 -10 --------- Run | Yrd Mat Min Total 616 | 45 533 38 Wait 102 | . 102 . Move 383 | 30 322 31 Hop . | . . . Pick Up 24 | 7 17 . Fast Attach . | . . . Attach 14 | 7 6 1 Detach . | . . . Swap 6 | . 6 . Drop 6 | . 6 . Fire 81 | 1 74 6 Melee . | . . . Ram . | . . . Kick . | . . . Crush . | . . . Escape Stasis . | . . . Rewire . | . . . Trap . | . . . Miscellaneous . | . . . Route ------- -11/Scrapyard -10/Materials -10/Mines History --------- Turn | Location | Event 24 | -11/Scrapyard | Discovered new exit (range 16) 59 | -11/Scrapyard | Entered Materials 315 | -10/Materials | Build established: Mutant 717 | -10/Materials | Discovered new exit (range 8) 784 | -10/Materials | Lost 3 parts (1p1n1w) 954 | -10/Materials | Entered Mines 955 | -10/Mines | Assembled infested the area 960 | -10/Mines | Assisted by a Guerilla fighting off Assembled 969 | -10/Mines | Met a Derelict bent on vengeance 978 | -10/Mines | Learned Materials terminal intel 986 | -10/Mines | Core integrity fell below 50% 1012 | -10/Mines | Core integrity fell below 20% 1013 | -10/Mines | Destroyed by D-53 Grenadier with Mini Grenade Launcher Last Messages --------------- HV Slug penetrates as-33058. as-33058 suffers critical hit (Destroy). as-33058 destroyed. HV Slug penetrates as-07868. HV Slug penetrates as-00662. 14-WWJ(h) destroyed. Acquired derelict log, extracted data. Data stored: Materials terminal intel. as-00662 destroyed. Imp. Terrain Scanner destroyed. Com. Wheel destroyed. Integrated Corrupted Aluminum Leg (+2). Particle Gun destroyed. Ion Engine destroyed. D-53 Grenadier unfolds itself. as-73455 destroyed. Aluminum Leg destroyed. as-66308 destroyed. U-05 Engineer lays Concrete. U-05 Engineer destroyed. Map ----- +----------------------------------------------------+ | ?????????????????????????????????????????????????? | | ?????????????????????????????????????????????????? | | ?????????????????????????????????????????????????? | | ?????????????????????????????????????????????????? | | ?????????????????????????????????????????????????? | | ?????????????????????????????????????????????????? | | ?????????????????????????????????????????????????? | | ?????????????????????????????????????????????????? | | ?????????????????????????????????????????????????? | | ?????????????????????????????????????????????????? | | ?????????????????????????????????????????????????? | | ?????????????????????????????????????????????????? | | ?????????????????????????????????????????????????? | | ?????????????????????????????????????????????????? | | ??????????????????????????????????? ????????????? | | ????????????????????????####?????? r?????????????? | | ???????????????????????## ##???? r#?????????????? | | ???????????????????????# #??? ??????????????? | | ???????????????????????# #?? ???????????????? | | ??????????????????????## ### ????????????????? | | ??????????????????#??## g ??????? ?????????? | | ??????????????????# ## ??????????????????? | | ??????????????????# ##??????????????????? | | ??????????????????? %d #??????????????????? | | ?????????????????????# d #??????????????????? | | ?????????????????????# @ ##??????????????????? | | ?????????????????????## #??????????????????? | | ??????????????????????# #??????????????????? | | ??????????????????????# aa ##??????????????????? | | ??????????????????????# #a #????????????#??????? | | ??????????????????????#### ###???????????????????? | | ?????????????????????????#a#???????????#?????????? | | ?????????????????????????# #?????????????????????? | | ?????????????????????????#a##########???##???????? | | ?????????????????????????# % #????????????? | | ?????????????????????????########## #####????????? | | ??????????????????????????????????# #????????? | | ???????????????????????#??????????##### #????????? | | ????????????????????????????????????### ###??????? | | ????????????????????????????????????# %#??##??? | | ????????????????????????????????????# #???? ?? | | ????????????????????????????????????# """ #??????? | | ????????????????????????????????????# """ #??? ??? | | ????????????????????????????????????# """ #??????? | | ????????????????????????????????????# % #??????? | | ????????????????????????? ###### #??????? | | ????????????????????????? %]!#??????? | | ?????????????????????????? ###### %=!#??????? | | ???????????????????????????????????## =%%#??????? | | ????????????????????????????????????# % %=#??????? | +----------------------------------------------------+ Best States ------------- Heat Dissipation 25 Energy Generation 10 Energy Capacity 250 Matter Stores 300 Matter Capacity 300 Sight Range 16 Terrain Scan Range 16 Terrain Scan Density 10 Evasion (%) 40 Recoil Reduction 2 Item Schematics ----------------- None Robot Schematics ------------------ None Fabricated ------------ Nothing Alien Tech Used ----------------- None Achievements -------------- None Challenges ------------ None Game ------ Seed CarbideBackupDisintegrator Manual? 0 Play Time 00:09:16 Cumulative 59.1 hours Start 2025.03.07 @ 00:10:26 End 2025.03.07 @ 00:18:41 Sessions 1 Manual Loads 0 Difficulty Rogue Special Mode None Game No. 86 Rogue 72 Adventurer 14 Explorer 0 Win Type - Total 0 Types 0/0/0/0/0/0/0/0/0 Lore% 20 Gallery% 41 Achievement% 38 Wizard Run 0 Options --------- Layout 1 ASCII 0 Keyboard 0 Movement Mouse Keybinds 0 Fullscreen 1 Font 24/Smallcaps Map View 50x35 Zoom Use 0% Tactical HUD 0 Map Filters NONE Filters NONE Steam 1 RUN: 8c0d37de-8026-43ef-8433-7060230fb4bf